bitfinex/quotes_SOLUSD_20250609
["timestamp","ask_amount","ask_price","bid_price","bid_amount"]
[1749477710011,15.22162201,153.77,153.74,11.58]
[1749477710383,41.22162201,153.78,153.74,11.58]
[1749477711721,15.22162201,153.75,153.71,18.08575759]
[1749477711907,1.5332,153.76,153.71,18.08575759]
[1749477711908,15.22162201,153.74,153.71,18.08575759]
[1749477712075,15.22162201,153.75,153.71,18.08575759]
[1749477712280,1.5332,153.76,153.71,18.08575759]
[1749477712281,16.75482201,153.76,153.72,15.22162201]
[1749477712781,26.0,153.75,153.73,15.22162201]
[1749477713323,1.5332,153.76,153.71,34.35015157]
[1749477713493,1.5332,153.76,153.73,6.5049112]
[1749477713693,1.5332,153.76,153.73,21.72653321]
[1749477714005,26.0,153.78,153.73,21.72653321]
[1749477714310,41.22162201,153.78,153.74,15.22162201]
[1749477714522,26.0,153.78,153.76,15.22162201]
[1749477714811,4.75169994,153.82,153.77,26.80162201]
[1749477715129,26.0,153.82,153.78,15.22162201]
[1749477715691,26.0,153.82,153.79,6.50237336]
[1749477715911,26.0,153.82,153.79,21.72399537]
[1749477716114,21.54172201,153.83,153.79,21.72399537]
[1749477716319,15.22162201,153.82,153.79,6.50237336]
[1749477718094,21.54172201,153.83,153.79,21.72399537]
[1749477718309,6.3201,153.83,153.79,21.72399537]
[1749477718619,21.54172201,153.83,153.79,21.72399537]
[1749477718824,21.54172201,153.83,153.79,6.50237336]
[1749477719195,15.22162201,153.82,153.79,6.50237336]
[1749477719421,6.3201,153.83,153.79,6.50237336]
[1749477719734,15.22162201,153.83,153.79,6.50237336]
[1749477720325,15.22162201,153.82,153.79,6.50237336]
[1749477720698,34.04392618,153.84,153.77,26.80162201]
[1749477720699,15.22162201,153.81,153.78,6.50263268]
[1749477720912,34.04392618,153.84,153.78,6.50263268]
[1749477721101,15.22162201,153.82,153.78,6.50263268]
[1749477721426,27.5436,153.84,153.79,15.22162201]
[1749477721739,4.75396367,153.86,153.83,15.22162201]
[1749477722016,21.88702201,153.88,153.84,15.22162201]
[1749477722193,6.6654,153.88,153.84,15.22162201]
[1749477722402,6.6654,153.88,153.85,6.4998375]
[1749477722923,5.0,153.88,153.87,15.22162201]
[1749477723301,5.0,153.88,153.87,24.77418921]
[1749477724521,5.0,153.88,153.87,49.92283072]
[1749477725030,5.0,153.88,153.87,6.49899265]
[1749477725317,5.0,153.88,153.87,11.58]
[1749477725526,5.0,153.88,153.83,41.40203785]
[1749477725527,29.77418921,153.88,153.83,25.15033143]
[1749477725723,5.0,153.88,153.85,11.58]
[1749477726626,5.0,153.88,153.85,18.0796908]
[1749477727634,5.0,153.88,153.86,24.77418921]
[1749477727801,29.77418921,153.88,153.85,11.58]
[1749477728413,24.77418921,153.87,153.85,11.58]
[1749477730212,5.0,153.88,153.85,11.58]
[1749477730412,29.77418921,153.88,153.85,11.58]
[1749477731940,24.77418921,153.87,153.85,11.58]
[1749477732126,24.77418921,153.87,153.81,72.36341894]
[1749477732127,26.39028921,153.86,153.81,49.04]
[1749477732329,24.77418921,153.84,153.81,55.54141223]
[1749477733126,1.6161,153.86,153.83,24.77418921]
[1749477733522,1.6161,153.86,153.84,6.50026001]
[1749477734020,26.39028921,153.86,153.82,24.77418921]
[1749477734229,1.6161,153.86,153.82,31.27529439]
[1749477734524,26.0,153.85,153.81,18.08136353]
[1749477734843,24.77418921,153.82,153.81,11.58]
[1749477735144,25.05851235,153.82,153.81,11.58]
[1749477735532,25.05851235,153.82,153.76,24.77418921]
[1749477735533,31.56002389,153.82,153.76,18.08354355]
[1749477735738,24.77418921,153.78,153.76,11.58]
[1749477735927,24.77418921,153.77,153.76,11.58]
[1749477736326,6.0378,153.81,153.76,18.08359815]
[1749477736536,24.77418921,153.79,153.76,18.08359815]
[1749477736759,24.77418921,153.8,153.76,42.85778736]
[1749477737235,24.77418921,153.79,153.76,11.58]
[1749477737620,24.77418921,153.79,153.76,18.08362116]
[1749477738428,24.77418921,153.81,153.76,42.85781037]
[1749477738628,24.77418921,153.8,153.76,18.08362116]
[1749477738851,24.77418921,153.79,153.76,18.08362116]
[1749477739028,24.77418921,153.77,153.76,11.58]
[1749477739548,26.28432314,153.81,153.76,11.58]
[1749477739549,24.77418921,153.78,153.76,18.08364203]
[1749477740250,1.5462,153.76,153.69,117.92964886]
[1749477740431,24.77418921,153.71,153.7,6.50613708]
[1749477740635,24.77418921,153.71,153.69,18.08643944]
[1749477740850,24.77418921,153.7,153.69,11.58]
[1749477742032,26.0,153.73,153.69,18.08659336]
[1749477742231,24.77418921,153.71,153.69,18.08659336]
[1749477742443,24.77418921,153.7,153.69,11.58]
[1749477743027,24.77418921,153.7,153.69,18.0866042]
[1749477743233,24.77418921,153.7,153.69,11.58]
[1749477743555,1.5462,153.76,153.69,42.86079341]
[1749477743859,1.5462,153.76,153.71,24.77418921]
[1749477743860,24.77418921,153.75,153.71,24.77418921]
[1749477744045,50.77418921,153.75,153.71,24.77418921]
[1749477744560,1.5462,153.76,153.72,24.77418921]
[1749477744765,1.5786,153.8,153.74,24.77418921]
[1749477745090,24.77418921,153.79,153.75,24.77418921]
[1749477745246,26.0,153.79,153.75,24.77418921]
[1749477745563,1.5786,153.8,153.77,24.77418921]
[1749477745772,26.0,153.79,153.78,6.5027962]
[1749477746070,26.35278921,153.8,153.78,6.5027962]
[1749477746439,1.5786,153.8,153.78,6.5027962]
[1749477747247,57.19688921,153.82,153.78,6.5027962]
[1749477747649,57.19688921,153.82,153.78,31.27698541]
[1749477747850,32.4227,153.82,153.78,31.27698541]
[1749477748156,32.4227,153.82,153.76,6.50364203]
[1749477748157,24.77418921,153.81,153.76,6.50364203]
[1749477748351,24.77418921,153.8,153.76,31.27783124]
[1749477748657,24.77418921,153.81,153.76,31.27783124]
[1749477748862,24.77418921,153.81,153.77,24.77418921]
[1749477749064,26.0,153.82,153.79,24.77418921]
[1749477749276,1.80746157,153.84,153.79,24.77418921]
[1749477749277,24.77418921,153.83,153.79,24.77418921]
[1749477749555,24.77418921,153.8,153.76,6.50364203]
[1749477749756,24.77418921,153.8,153.76,31.27783124]
[1749477750348,24.77418921,153.79,153.75,11.58]
[1749477750564,26.28432314,153.83,153.75,11.58]
[1749477750565,24.77418921,153.78,153.75,11.58]
[1749477751065,24.77418921,153.77,153.75,11.58]
[1749477751652,24.77418921,153.76,153.75,11.58]
[1749477751864,26.40538921,153.76,153.75,11.58]
[1749477753881,6.0842,153.79,153.73,24.77418921]
[1749477754084,6.0842,153.79,153.75,24.77418921]
[1749477754085,26.0,153.79,153.75,24.77418921]
[1749477754260,50.77418921,153.79,153.74,24.77418921]
[1749477754460,24.77418921,153.78,153.74,24.77418921]
[1749477755958,0.28432314,153.8,153.75,24.77418921]
[1749477756183,0.28432314,153.8,153.74,6.50416905]
[1749477756184,32.0334,153.83,153.78,24.77418921]
[1749477756380,24.77418921,153.84,153.8,24.77418921]
[1749477756757,24.77418921,153.83,153.78,24.77418921]
[1749477757186,24.77418921,153.83,153.79,24.77418921]
[1749477757884,50.77418921,153.83,153.79,24.77418921]
[1749477758069,50.77418921,153.83,153.8,6.50195058]
[1749477758691,26.0,153.83,153.8,6.50195058]
[1749477759068,26.0,153.83,153.77,6.50321909]
[1749477759267,26.0,153.83,153.79,24.77418921]
[1749477760189,24.77418921,153.82,153.78,24.77418921]
[1749477760987,24.77418921,153.82,153.77,6.50321909]
[1749477761194,24.77418921,153.82,153.77,42.8574083]
[1749477762375,24.77418921,153.81,153.77,42.8574083]
[1749477762563,26.0,153.83,153.77,42.8574083]
[1749477763586,24.77418921,153.82,153.79,6.50237336]
[1749477764063,24.77418921,153.82,153.78,6.502647]
[1749477765090,24.77418921,153.82,153.78,31.27683621]
[1749477765269,24.77418921,153.82,153.78,6.502647]
[1749477765987,26.0,153.83,153.78,31.27683621]
[1749477766184,26.0,153.83,153.79,24.77418921]
[1749477767777,26.0,153.83,153.8,6.50195058]
[1749477768585,50.77418921,153.83,153.8,6.50195058]
[1749477771373,41.22030572,153.83,153.8,6.50195058]
[1749477771995,26.0,153.8,153.73,6.5049112]
[1749477772205,1.87132314,153.79,153.73,6.5049112]
[1749477772500,0.28432314,153.78,153.73,6.5049112]
[1749477772715,15.22030572,153.74,153.72,11.58]
[1749477772887,15.22030572,153.73,153.72,11.58]
[1749477773893,26.0,153.74,153.72,18.08533437]
[1749477774098,26.0,153.76,153.72,11.58]
[1749477774299,15.22030572,153.73,153.72,11.58]
[1749477774607,15.22030572,153.73,153.72,18.08533437]
[1749477774804,26.0,153.76,153.72,18.08533437]
[1749477774993,15.22030572,153.73,153.72,18.08533437]
[1749477775306,24.83828291,153.73,153.72,18.08533437]
[1749477775507,24.83828291,153.73,153.72,11.58]
[1749477776285,24.83828291,153.73,153.72,18.08533437]
[1749477776698,24.83828291,153.73,153.72,11.58]
[1749477777300,24.83828291,153.73,153.72,18.08533437]
[1749477777886,0.28432314,153.74,153.72,18.08533437]
[1749477778202,24.83828291,153.74,153.72,18.08533437]
[1749477778420,1.587,153.79,153.72,34.3486703]
[1749477778581,1.587,153.79,153.72,59.18695321]
[1749477778582,24.83828291,153.76,153.72,59.18695321]
[1749477778786,1.587,153.79,153.72,34.3486703]
[1749477778995,6.6304,153.8,153.75,24.83828291]
[1749477778996,24.83828291,153.8,153.75,24.83828291]
[1749477779208,24.83828291,153.79,153.76,6.50364203]
[1749477779811,8.07619981,153.83,153.76,6.50364203]
[1749477780121,24.83828291,153.79,153.76,6.50364203]
[1749477780602,26.0,153.82,153.76,6.50364203]
[1749477780603,26.0,153.8,153.76,6.50364203]
[1749477780809,24.83828291,153.79,153.76,6.50364203]
[1749477781109,24.83828291,153.78,153.73,22.76718921]
[1749477781403,24.83828291,153.79,153.74,24.83828291]
[1749477781916,24.83828291,153.78,153.73,47.60547212]
[1749477782207,24.83828291,153.77,153.73,22.76718921]
[1749477782514,24.83828291,153.77,153.73,47.60547212]
[1749477782686,24.83828291,153.76,153.73,6.5049112]
[1749477783513,24.83828291,153.75,153.73,6.5049112]
[1749477783705,24.83828291,153.76,153.73,6.5049112]
[1749477784016,24.83828291,153.77,153.73,6.5049112]
[1749477784199,24.83828291,153.78,153.73,47.60547212]
[1749477784884,0.28432314,153.79,153.73,47.60547212]
[1749477785085,24.83828291,153.77,153.73,47.60547212]
[1749477785512,24.83828291,153.77,153.73,22.76718921]
[1749477785827,24.83828291,153.76,153.73,6.5049112]
[1749477786318,24.83828291,153.76,153.72,11.58]
[1749477786319,24.83828291,153.74,153.72,11.58]
[1749477786484,24.83828291,153.74,153.72,18.08525005]
[1749477786688,8.26392314,153.76,153.72,18.08525005]
[1749477786689,32.81788291,153.76,153.72,18.08525005]
[1749477787317,24.83828291,153.74,153.72,11.58]
[1749477787609,7.9796,153.76,153.72,11.58]
[1749477787610,24.83828291,153.73,153.72,11.58]
[1749477791413,6.78849097,153.75,153.72,11.58]
[1749477791722,26.0,153.73,153.72,11.58]
[1749477794120,0.28432314,153.72,153.67,18.08703397]
[1749477794297,24.83828291,153.69,153.67,18.08703397]
[1749477794615,24.83828291,153.7,153.67,18.08703397]
[1749477794984,24.83828291,153.69,153.67,11.58]
[1749477795210,24.83828291,153.68,153.67,11.58]
[1749477795820,24.83828291,153.68,153.64,6.50860206]
[1749477795994,24.83828291,153.67,153.64,6.50860206]
[1749477796389,24.83828291,153.66,153.64,6.50860206]
[1749477796589,24.83828291,153.67,153.64,6.50860206]
[1749477796801,1.5705,153.69,153.66,31.34615743]
[1749477797008,26.0,153.7,153.67,24.83828291]
[1749477797398,50.83828291,153.7,153.66,31.34615743]
[1749477797597,24.83828291,153.69,153.66,6.50787452]
[1749477798105,50.83828291,153.7,153.66,6.50787452]
[1749477798725,50.83828291,153.7,153.66,24.83828291]
[1749477799411,50.83828291,153.7,153.65,24.83828291]
[1749477800397,24.83828291,153.69,153.64,22.779837]
[1749477800604,26.0,153.7,153.64,22.779837]
[1749477800914,7.95182314,153.73,153.66,47.61584375]
[1749477801111,58.50578291,153.73,153.68,24.83828291]
[1749477801319,24.83828291,153.72,153.68,24.83828291]
[1749477802191,24.83828291,153.72,153.67,36.41828291]
[1749477802798,24.83828291,153.72,153.68,6.50702758]
[1749477802999,58.50578291,153.73,153.68,31.34531049]
[1749477803605,24.83828291,153.72,153.68,31.34531049]
[1749477805210,33.6675,153.73,153.68,31.34531049]
[1749477805411,26.0,153.73,153.7,24.83828291]
[1749477805612,8.1832,153.77,153.71,24.83828291]
[1749477805815,33.02148291,153.77,153.72,24.83828291]
[1749477806137,33.02148291,153.77,153.68,109.38424541]
[1749477806138,8.1832,153.81,153.73,24.83828291]
[1749477806307,24.83828291,153.78,153.73,36.41828291]
[1749477806704,8.1832,153.81,153.75,24.83828291]
[1749477807043,24.83828291,153.8,153.77,6.50321909]
[1749477807348,1.6343,153.81,153.77,6.50321909]
[1749477807519,42.86036444,153.81,153.77,6.50321909]
[1749477807844,27.6343,153.81,153.77,6.50321909]
[1749477808015,8.1654,153.85,153.77,37.98733126]
[1749477808208,8.1654,153.85,153.78,15.22606444]
[1749477808209,26.0,153.82,153.78,15.22606444]
[1749477808408,15.22606444,153.82,153.77,37.98733126]
[1749477809206,24.80908099,153.82,153.77,47.57034781]
[1749477810639,26.0,153.83,153.77,18.08321909]
[1749477810640,24.80908099,153.81,153.77,18.08321909]
[1749477810847,24.80908099,153.8,153.77,18.08321909]
[1749477811021,24.80908099,153.78,153.77,11.58]
[1749477811739,31.59620033,153.78,153.77,11.58]
[1749477811945,26.68160413,153.78,153.77,11.58]
[1749477812251,26.68160413,153.78,153.74,6.504445]
[1749477812423,1.87252314,153.78,153.74,6.504445]
[1749477812624,1.5882,153.78,153.74,6.504445]
[1749477812825,24.80908099,153.77,153.74,6.504445]
[1749477813435,24.80908099,153.76,153.74,6.504445]
[1749477813631,24.80908099,153.75,153.73,6.50474586]
[1749477813858,24.80908099,153.75,153.72,18.08515939]
[1749477814044,24.80908099,153.76,153.72,18.08515939]
[1749477815455,24.80908099,153.75,153.72,18.08515939]
[1749477816252,24.80908099,153.76,153.72,18.08515939]
[1749477817047,24.80908099,153.75,153.72,18.08515939]
[1749477818558,24.80908099,153.74,153.72,11.58]
[1749477818751,24.80908099,153.73,153.72,11.58]
[1749477819228,6.5049179,153.73,153.68,6.50685794]
[1749477819422,24.80908099,153.72,153.68,6.50685794]
[1749477819637,6.78894779,153.74,153.69,24.80908099]
[1749477819638,24.80908099,153.73,153.69,24.80908099]
[1749477820335,24.80908099,153.73,153.68,31.31593893]
[1749477821259,0.28432314,153.75,153.69,24.80908099]
[1749477821428,26.0,153.75,153.71,24.80908099]
[1749477821759,7.9976,153.78,153.72,24.80908099]
[1749477821760,33.9976,153.78,153.72,24.80908099]
[1749477821926,26.39728099,153.78,153.73,36.38908099]
[1749477822126,26.0,153.78,153.74,24.80908099]
[1749477822327,24.80908099,153.81,153.76,24.80908099]
[1749477822639,7.848,153.82,153.75,24.80908099]
[1749477822640,24.80908099,153.8,153.75,24.80908099]
[1749477822845,24.80908099,153.79,153.74,66.74908099]
[1749477823040,24.80908099,153.79,153.74,24.80908099]
[1749477823237,24.80908099,153.8,153.75,31.31314603]
[1749477823934,24.80908099,153.8,153.75,47.57330863]
[1749477824653,24.80908099,153.78,153.75,6.50406504]
[1749477824952,24.80908099,153.79,153.75,6.50406504]
[1749477825154,14.633599,153.82,153.75,6.50406504]
[1749477825155,24.80908099,153.8,153.75,31.31314603]
[1749477825832,0.28432314,153.81,153.75,31.31314603]
[1749477826160,24.80908099,153.8,153.75,31.31314603]
[1749477826356,24.80908099,153.81,153.76,24.80908099]
[1749477827146,24.80908099,153.8,153.75,47.57330863]
[1749477828062,24.80908099,153.8,153.75,22.76422764]
[1749477828358,24.80908099,153.8,153.75,47.57330863]
[1749477829470,15.2277164,153.8,153.75,37.99194404]
[1749477830635,7.848,153.82,153.76,15.2277164]
[1749477830836,7.848,153.82,153.77,15.2277164]
[1749477831037,1.5486,153.82,153.77,15.2277164]
[1749477831245,1.69076157,153.82,153.77,15.2277164]
[1749477831633,1.5486,153.82,153.78,15.2277164]
[1749477831964,16.7763164,153.82,153.78,6.5027962]
[1749477832276,16.7763164,153.82,153.76,6.50364203]
[1749477832277,15.2277164,153.81,153.76,6.50364203]
[1749477832559,1.5486,153.82,153.76,21.73135843]
[1749477832768,15.2277164,153.81,153.76,37.99046352]
[1749477834543,1.5486,153.82,153.77,15.2277164]
[1749477834861,16.7763164,153.82,153.78,6.5027962]
[1749477835965,15.2277164,153.81,153.78,6.5027962]
[1749477836143,15.2277164,153.8,153.75,21.73178144]
[1749477836346,15.2277164,153.81,153.76,15.2277164]
[1749477836967,15.2277164,153.81,153.77,6.50321909]
[1749477837469,15.2277164,153.8,153.77,6.50321909]
[1749477837644,15.2277164,153.78,153.74,6.50448809]
[1749477837847,15.2277164,153.78,153.74,18.04448809]
[1749477838047,15.2277164,153.78,153.74,33.27220449]
[1749477838266,41.2277164,153.79,153.74,33.27220449]
[1749477841253,41.2277164,153.79,153.75,15.2277164]
[1749477841454,41.2277164,153.79,153.76,15.2277164]
[1749477841455,26.0,153.79,153.76,15.2277164]
[1749477841648,1.5486,153.82,153.78,15.2277164]
[1749477843275,1.5486,153.82,153.79,6.50237336]
[1749477843576,1.5486,153.82,153.79,37.98602317]
[1749477843763,1.5486,153.82,153.79,22.75830677]
[1749477844280,16.7763164,153.82,153.79,6.50237336]
[1749477845277,16.7763164,153.82,153.78,6.5027962]
[1749477845573,15.2277164,153.81,153.77,6.50315132]
[1749477846461,1.5486,153.82,153.77,21.73086772]
[1749477846658,16.7763164,153.82,153.77,21.73086772]
[1749477847258,15.2277164,153.81,153.77,6.50315132]
[1749477847971,15.2277164,153.81,153.77,21.73086772]
[1749477848788,15.2277164,153.81,153.77,6.50315132]
[1749477849264,15.2277164,153.8,153.76,18.04346958]
[1749477849801,1.5486,153.82,153.76,33.27118598]
[1749477849956,15.2277164,153.81,153.77,15.2277164]
[1749477850356,30.76544334,153.83,153.8,15.2277164]
[1749477850658,26.0,153.83,153.81,15.2277164]
[1749477851269,26.0,153.83,153.81,21.72894229]
[1749477851908,26.0,153.83,153.78,16.2567765]
[1749477851909,26.0,153.83,153.8,21.72953531]
[1749477852271,26.0,153.83,153.81,15.2277164]
[1749477852464,4.76544334,153.85,153.81,15.2277164]
[1749477852681,49.1580164,153.86,153.82,15.2277164]
[1749477852987,7.9303,153.86,153.82,15.2277164]
[1749477853186,26.0,153.84,153.82,6.50110518]
[1749477853371,4.76544334,153.85,153.82,6.50110518]
[1749477853573,23.1580164,153.86,153.82,6.50110518]
[1749477853881,26.0,153.85,153.82,21.72882158]
[1749477855576,26.0,153.85,153.81,15.2277164]
[1749477855790,41.2277164,153.85,153.81,15.2277164]
[1749477857362,41.2277164,153.85,153.79,18.64964886]
[1749477857564,45.99315974,153.85,153.81,6.50152785]
[1749477857865,26.0,153.85,153.81,21.72924425]
[1749477858078,41.2277164,153.85,153.81,6.50152785]
[1749477858287,15.2277164,153.83,153.79,6.50237336]
[1749477858488,32.50002243,153.85,153.79,21.73008976]
[1749477858667,15.2277164,153.83,153.79,21.73008976]
[1749477859256,30.76696061,153.85,153.82,15.2277164]
[1749477859460,26.0,153.85,153.82,26.7477164]
[1749477859662,26.0,153.85,153.82,33.24849683]
[1749477860191,31.0,153.85,153.82,18.02078043]
[1749477860869,31.0,153.85,153.82,33.24849683]
[1749477861562,5.0,153.85,153.82,33.24849683]
[1749477861763,5.0,153.85,153.83,15.2277164]
[1749477861987,5.0,153.85,153.84,15.2277164]
[1749477863805,5.0,153.85,153.84,21.72797641]
[1749477864787,5.0,153.85,153.82,33.24865692]
[1749477865500,5.0,153.85,153.83,15.2277164]
[1749477865696,5.0,153.85,153.83,21.72832818]
[1749477866008,31.72765271,153.85,153.79,48.82841222]
[1749477866183,15.2277164,153.83,153.8,11.52]
[1749477866693,15.2277164,153.84,153.8,11.52]
[1749477866866,15.2277164,153.83,153.8,11.52]
[1749477867066,1.6203,153.83,153.79,22.82841222]
[1749477867271,15.2277164,153.81,153.79,22.82841222]
[1749477868176,15.2277164,153.8,153.77,11.52]
[1749477868498,15.2277164,153.79,153.77,11.52]
[1749477869289,0.28432314,153.82,153.77,33.25089805]
[1749477869592,64.27773557,153.85,153.81,15.2277164]
[1749477869593,4.76696061,153.84,153.81,15.2277164]
[1749477869794,10.0,153.85,153.81,21.72888693]
[1749477870372,10.0,153.85,153.83,15.2277164]
[1749477870576,10.0,153.85,153.83,26.7477164]
[1749477870796,10.0,153.85,153.83,11.52]
[1749477872180,10.0,153.85,153.83,18.02060638]
[1749477874197,10.0,153.85,153.83,11.52]
[1749477874601,10.0,153.85,153.76,72.36784512]
[1749477874602,15.2277164,153.84,153.76,72.36784512]
[1749477874802,15.2277164,153.82,153.79,11.52]
[1749477875186,15.2277164,153.8,153.79,11.52]
[1749477875376,17.01813954,153.8,153.74,11.52]
[1749477875585,15.2277164,153.75,153.74,11.52]
[1749477876004,15.2277164,153.75,153.68,15.2277164]
[1749477876005,15.2277164,153.75,153.69,18.0266042]
[1749477876183,15.2277164,153.73,153.69,18.0266042]
[1749477876792,15.2277164,153.72,153.69,18.0266042]
[1749477877187,0.28432314,153.77,153.69,33.2543206]
[1749477877403,24.83517171,153.73,153.69,42.86177591]
[1749477878294,24.83517171,153.74,153.7,24.83517171]
[1749477878902,24.83517171,153.73,153.69,42.86177591]
[1749477879598,24.83517171,153.74,153.7,24.83517171]
[1749477879795,4.76696061,153.77,153.71,6.50575759]
[1749477879977,24.83517171,153.75,153.71,31.3409293]
[1749477880181,26.0,153.76,153.71,31.3409293]
[1749477880400,50.83517171,153.76,153.72,24.83517171]
[1749477880609,24.83517171,153.75,153.71,31.3409293]
[1749477880994,24.83517171,153.74,153.71,6.50575759]
[1749477881938,26.0,153.76,153.71,6.50575759]
[1749477882078,24.83517171,153.75,153.71,31.3409293]
[1749477882696,24.83517171,153.74,153.71,6.50575759]
[1749477882909,24.83517171,153.72,153.69,11.52]
[1749477883119,6.4588,153.75,153.69,11.52]
[1749477883120,24.83517171,153.71,153.69,11.52]
[1749477883626,6.4588,153.75,153.69,11.52]
[1749477883627,24.83517171,153.7,153.69,11.52]
[1749477890036,6.50506958,153.73,153.69,11.52]
[1749477890322,64.55898456,153.75,153.7,24.83517171]
[1749477890323,6.4588,153.75,153.7,24.83517171]
[1749477890523,1.5917,153.76,153.71,24.83517171]
[1749477890524,26.42687171,153.76,153.71,24.83517171]
[1749477890728,26.0,153.75,153.71,24.83517171]
[1749477891110,26.0,153.75,153.69,34.2931147]
[1749477891329,24.83517171,153.78,153.73,24.83517171]
[1749477891510,24.83517171,153.78,153.74,24.83517171]
[1749477891706,24.83517171,153.77,153.73,24.83517171]
[1749477891910,24.83517171,153.74,153.69,60.2931147]
[1749477892128,12.68848587,153.79,153.69,60.2931147]
[1749477892129,24.83517171,153.75,153.7,24.83517171]
[1749477892435,24.83517171,153.74,153.71,6.50575759]
[1749477892608,24.83517171,153.72,153.69,11.5]
[1749477892801,24.83517171,153.71,153.69,11.5]
[1749477893517,1.5663,153.73,153.69,11.5]
[1749477893518,24.83517171,153.72,153.69,11.5]
[1749477894417,24.83517171,153.72,153.69,18.0063167]
[1749477894828,24.83517171,153.72,153.69,11.5]
[1749477895027,24.83517171,153.72,153.69,18.00645504]
[1749477895229,26.40147171,153.73,153.69,42.84162675]
[1749477896138,1.5663,153.73,153.69,42.84162675]
[1749477900419,50.97733328,153.75,153.7,24.83517171]
[1749477900623,24.97733328,153.75,153.7,24.83517171]
[1749477900822,27.80426157,153.76,153.71,24.83517171]
[1749477901026,52.63943328,153.76,153.71,24.83517171]
[1749477901224,1.6177,153.8,153.74,24.83517171]
[1749477901542,6.483,153.83,153.78,24.83517171]
[1749477901722,31.31817171,153.83,153.8,6.50195058]
[1749477902218,1.6177,153.84,153.8,31.33712229]
[1749477902544,10.0,153.85,153.82,24.83517171]
[1749477903040,10.0,153.85,153.81,11.5]
[1749477903041,10.0,153.85,153.81,36.33517171]
[1749477903445,10.0,153.85,153.82,24.83517171]
[1749477903617,10.0,153.85,153.81,11.5]
[1749477903618,10.0,153.85,153.83,24.83517171]
[1749477903942,10.0,153.85,153.82,31.33597999]
[1749477904481,10.0,153.85,153.81,11.5]
[1749477904482,34.83517171,153.85,153.81,42.83655519]
[1749477904637,24.83517171,153.84,153.81,11.5]
[1749477904843,25.11949485,153.82,153.81,11.5]
[1749477905033,26.65309485,153.82,153.77,24.83517171]
[1749477905226,24.83517171,153.81,153.77,24.83517171]
[1749477905440,27.81792314,153.82,153.76,11.5]
[1749477905441,24.83517171,153.8,153.76,18.00335009]
[1749477906024,24.83517171,153.81,153.76,42.8385218]
[1749477906620,24.83517171,153.81,153.77,24.83517171]
[1749477906837,27.5336,153.82,153.78,24.83517171]
[1749477907042,27.5336,153.82,153.76,18.00335009]
[1749477907043,1.5336,153.82,153.79,24.83517171]
[1749477907248,36.28432314,153.85,153.8,24.83517171]
[1749477907421,10.0,153.85,153.84,24.83517171]
[1749477907923,10.0,153.85,153.84,31.33543172]
[1749477908126,10.0,153.85,153.84,24.83517171]
[1749477908329,10.0,153.85,153.83,31.33568677]
[1749477908542,10.0,153.85,153.82,18.00106692]
[1749477908730,10.0,153.85,153.83,24.83517171]
[1749477908930,10.0,153.85,153.82,18.00106692]
[1749477908931,10.0,153.85,153.84,24.83517171]
[1749477910025,10.0,153.85,153.84,31.33543172]
[1749477913726,10.0,153.85,153.84,6.50026001]
[1749477913947,10.0,153.85,153.83,6.50053115]
[1749477914847,10.0,153.85,153.83,31.33570286]
[1749477915049,10.0,153.85,153.84,24.83517171]
[1749477916263,10.0,153.85,153.84,43.48482057]
[1749477916934,10.0,153.85,153.84,49.98508058]
[1749477917443,10.0,153.85,153.84,6.50026001]
[1749477917840,10.0,153.85,153.84,31.33543172]
[1749477918044,10.0,153.85,153.84,6.50026001]
[1749477918241,10.0,153.85,153.84,31.33543172]
[1749477919131,10.0,153.85,153.84,49.98508058]
[1749477919738,10.0,153.85,153.84,31.33543172]
[1749477919950,10.0,153.85,153.84,6.50026001]
[1749477920450,10.0,153.85,153.84,17.98026001]
[1749477924762,10.0,153.85,153.84,42.81543172]
[1749477925767,10.0,153.85,153.84,17.98026001]
[1749477925955,10.0,153.85,153.84,11.48]
[1749477926159,34.83517171,153.85,153.84,11.48]
[1749477926353,7.7117,153.84,153.76,16.25805341]
[1749477926548,7.7117,153.84,153.79,11.48]
[1749477926768,7.7117,153.84,153.8,24.83517171]
[1749477926769,26.35817171,153.84,153.8,24.83517171]
[1749477926986,1.523,153.84,153.81,24.83517171]
[1749477927149,10.0,153.85,153.82,24.83517171]
[1749477927474,10.0,153.85,153.84,31.33543172]
[1749477930276,9.0,153.85,153.84,31.33543172]
[1749477932150,9.0,153.85,153.84,49.98508058]
[1749477933472,9.0,153.85,153.84,40.35466234]